bitfinex-derivatives/quotes_BTCF0:USTF0_20251011
["timestamp","ask_amount","ask_price","bid_price","bid_amount"]
[1760187278922,0.06113023,112320.0,112310.0,0.61795193]
[1760187279522,0.06213023,112320.0,112310.0,0.61795193]
[1760187279721,0.06213023,112320.0,112310.0,0.52900313]
[1760187279924,0.06213023,112320.0,112310.0,0.61795333]
[1760187280416,0.15107253,112320.0,112310.0,0.61795333]
[1760187280822,0.15107253,112320.0,112310.0,0.52900313]
[1760187281423,0.15107253,112320.0,112310.0,0.31388313]
[1760187281624,0.15107253,112320.0,112310.0,0.52900313]
[1760187282020,0.15107253,112320.0,112310.0,0.31388313]
[1760187282220,0.15107253,112320.0,112310.0,0.52900313]
[1760187282922,0.15107253,112320.0,112310.0,0.31388313]
[1760187283424,0.15107253,112320.0,112310.0,0.49738654]
[1760187284123,0.15107253,112320.0,112290.0,0.64306654]
[1760187284124,0.1246281,112300.0,112290.0,0.3608]
[1760187284323,0.1246281,112300.0,112290.0,0.73203254]
[1760187284522,0.1246281,112300.0,112290.0,0.94715254]
[1760187285023,0.1246281,112300.0,112290.0,0.73203254]
[1760187285223,0.1246281,112300.0,112290.0,0.94715254]
[1760187286519,0.1246281,112300.0,112290.0,1.22941908]
[1760187287022,0.1246281,112300.0,112290.0,0.92533308]
[1760187287223,0.1252239,112280.0,112260.0,0.66103893]
[1760187287423,0.01344,112270.0,112260.0,0.75002873]
[1760187287720,0.03625,112280.0,112270.0,0.0889818]
[1760187287915,0.03625,112280.0,112270.0,0.4497818]
[1760187288516,0.03625,112280.0,112270.0,0.73204834]
[1760187288724,0.1252239,112280.0,112270.0,0.73204834]
[1760187289121,0.03625,112280.0,112270.0,0.94716834]
[1760187289523,0.03625,112280.0,112270.0,0.73204834]
[1760187289725,0.1252239,112280.0,112270.0,0.6649018]
[1760187289925,0.1252239,112280.0,112270.0,0.94716834]
[1760187290721,0.1252239,112280.0,112270.0,0.73204834]
[1760187291020,0.1262239,112280.0,112270.0,0.73204834]
[1760187291218,0.1262239,112280.0,112270.0,0.94716834]
[1760187292527,0.1262239,112280.0,112270.0,0.73204834]
[1760187292729,0.1262239,112280.0,112270.0,0.94720834]
[1760187293429,0.1262239,112280.0,112270.0,0.73204834]
[1760187293628,0.1262239,112280.0,112270.0,0.94720834]
[1760187294025,0.08251141,112290.0,112280.0,0.0889739]
[1760187294231,0.19075977,112290.0,112280.0,0.39245044]
[1760187294532,0.11876141,112290.0,112280.0,0.39245044]
[1760187294729,0.51876141,112290.0,112280.0,0.51863654]
[1760187294930,0.51876141,112290.0,112280.0,0.30347654]
[1760187295129,0.51876141,112290.0,112280.0,0.51863654]
[1760187295328,0.51976141,112290.0,112280.0,0.51863654]
[1760187296130,0.52076141,112290.0,112280.0,0.30347654]
[1760187296328,0.52076141,112290.0,112280.0,0.51863654]
[1760187296830,0.52076141,112290.0,112280.0,0.49742654]
[1760187297032,0.52076141,112290.0,112280.0,0.28226654]
[1760187297232,0.52076141,112290.0,112280.0,0.49742654]
[1760187297934,0.52076141,112290.0,112280.0,0.28226654]
[1760187298837,0.59330775,112290.0,112280.0,0.28226654]
[1760187299238,0.1252239,112280.0,112270.0,0.59717]
[1760187299539,0.1252239,112280.0,112270.0,0.87943654]
[1760187299739,0.1252239,112280.0,112270.0,0.66427654]
[1760187299938,0.1252239,112280.0,112270.0,0.87943654]
[1760187300938,0.1252239,112280.0,112270.0,0.66427654]
[1760187301138,0.1262239,112280.0,112270.0,0.96841834]
[1760187301532,0.1262239,112280.0,112270.0,0.75325834]
[1760187301736,0.1262239,112280.0,112270.0,0.96841834]
[1760187302335,0.1262239,112280.0,112270.0,0.87943654]
[1760187303340,0.1262239,112280.0,112270.0,0.30347654]
[1760187303536,0.1262239,112280.0,112270.0,0.51863654]
[1760187304040,0.4870239,112280.0,112270.0,0.51863654]
[1760187304233,0.4870239,112280.0,112270.0,0.30347654]
[1760187304432,0.4870239,112280.0,112270.0,0.51863654]
[1760187306340,0.4870239,112280.0,112270.0,0.30347654]
[1760187306540,0.4870239,112280.0,112270.0,0.51863654]
[1760187307239,0.4870239,112280.0,112270.0,0.30347654]
[1760187307441,0.4870239,112280.0,112270.0,0.23637]
[1760187307641,0.4870239,112280.0,112270.0,0.51863654]
[1760187308141,0.4870239,112280.0,112270.0,0.30347654]
[1760187308346,0.4870239,112280.0,112270.0,0.51863654]
[1760187310742,0.1262239,112280.0,112270.0,0.30347654]
[1760187310947,0.1262239,112280.0,112270.0,0.51863654]
[1760187311942,0.1262239,112280.0,112270.0,0.30347654]
[1760187312248,0.1262239,112280.0,112270.0,0.60761844]
[1760187312940,0.1262239,112280.0,112270.0,0.76331844]
[1760187313146,0.1262239,112280.0,112270.0,0.97847844]
[1760187313348,0.1262239,112280.0,112270.0,0.96841844]
[1760187314939,0.03725,112280.0,112270.0,0.96841844]
[1760187315244,0.38361,112300.0,112290.0,0.123096]
[1760187315450,0.02449203,112300.0,112290.0,1.26358908]
[1760187315841,0.02281,112310.0,112300.0,0.123951]
[1760187316147,0.02448784,112310.0,112300.0,0.98217754]
[1760187316348,0.49694561,112320.0,112310.0,0.1239502]
[1760187316545,0.04719941,112320.0,112310.0,0.76701674]
[1760187317253,0.13614171,112320.0,112310.0,0.76701674]
[1760187317651,0.13732452,112320.0,112310.0,0.76701674]
[1760187317848,0.13932452,112320.0,112310.0,0.76701674]
[1760187318349,0.05038222,112320.0,112310.0,0.76701674]
[1760187319045,0.02571,112320.0,112310.0,0.76701674]
[1760187319253,0.003,112320.0,112310.0,1.44928328]
[1760187320254,0.07137114,112320.0,112310.0,1.44928328]
[1760187320650,0.07137114,112320.0,112310.0,1.16701674]
[1760187320952,0.09408114,112320.0,112310.0,0.80621674]
[1760187321646,0.09408114,112320.0,112310.0,1.02137674]
[1760187321953,0.09408114,112320.0,112310.0,1.38217674]
[1760187322153,0.09408114,112320.0,112310.0,1.02137674]
[1760187322453,0.09408114,112320.0,112310.0,0.80621674]
[1760187322648,0.09408114,112320.0,112310.0,1.02133674]
[1760187323046,0.09408114,112320.0,112310.0,0.80621674]
[1760187323247,0.09408114,112320.0,112310.0,1.02133674]
[1760187325453,0.19622344,112320.0,112310.0,0.31726654]
[1760187325657,0.55702344,112320.0,112310.0,0.51935654]
[1760187326057,0.55702344,112320.0,112310.0,0.60830674]
[1760187327057,0.95702344,112320.0,112310.0,0.51935654]
[1760187327260,0.1248602,112310.0,112300.0,0.40622464]
[1760187327451,0.1248602,112310.0,112300.0,0.62134464]
[1760187327853,0.1248602,112310.0,112300.0,0.40622464]
[1760187328061,0.1248602,112310.0,112300.0,0.62134464]
[1760187328760,0.1248602,112310.0,112300.0,0.40622464]
[1760187328957,0.1248602,112310.0,112300.0,0.62134464]
[1760187329660,0.1248602,112310.0,112300.0,0.40622464]
[1760187329859,0.1248602,112310.0,112300.0,0.62134464]
[1760187330260,0.1258602,112310.0,112300.0,0.62134464]
[1760187330661,0.1268602,112310.0,112300.0,0.62134464]
[1760187333059,0.1136602,112310.0,112300.0,0.62134464]
[1760187333964,0.1136602,112310.0,112300.0,0.62130464]
[1760187334160,0.1136602,112310.0,112300.0,0.40622464]
[1760187334360,0.1136602,112310.0,112300.0,0.62130464]
[1760187335663,0.4876602,112310.0,112300.0,0.02197]
[1760187335962,0.8876602,112310.0,112300.0,0.30423654]
[1760187336168,0.8876602,112310.0,112300.0,0.51931654]
[1760187336669,0.8876602,112310.0,112300.0,0.30423654]
[1760187337562,1.1027402,112310.0,112300.0,0.30423654]
[1760187337967,0.8876602,112310.0,112300.0,0.30423654]
[1760187338168,1.1027402,112310.0,112300.0,0.30423654]
[1760187338369,0.8876602,112310.0,112300.0,0.30423654]
[1760187338567,1.1027402,112310.0,112300.0,0.30423654]
[1760187339467,0.8876602,112310.0,112300.0,0.30423654]
[1760187339670,0.8876602,112310.0,112300.0,0.39319464]
[1760187339671,1.1027402,112310.0,112300.0,0.39319464]
[1760187341066,0.8876602,112310.0,112300.0,0.39319464]
[1760187341370,1.1027402,112310.0,112300.0,0.39319464]
[1760187341968,0.8876602,112310.0,112300.0,0.39319464]
[1760187342269,0.91231691,112310.0,112300.0,0.39319464]
[1760187342569,0.7027402,112310.0,112300.0,0.39319464]
[1760187342764,0.7027402,112310.0,112280.0,0.1234504]
[1760187342765,0.088966,112290.0,112280.0,0.1234504]
[1760187342972,0.123746,112290.0,112280.0,0.51890654]
[1760187343463,0.338826,112290.0,112280.0,0.51890654]
[1760187343661,0.338826,112290.0,112280.0,0.60788044]
[1760187343972,0.338826,112290.0,112280.0,0.40672044]
[1760187344167,0.123746,112290.0,112280.0,0.62180044]
[1760187344367,0.123746,112290.0,112280.0,0.40672044]
[1760187344568,0.123746,112290.0,112280.0,0.62180044]
[1760187345461,0.123746,112290.0,112280.0,0.3395339]
[1760187346569,0.124746,112290.0,112280.0,0.3395339]
[1760187346766,0.124746,112290.0,112280.0,0.1244539]
[1760187346961,0.124746,112290.0,112280.0,0.3395339]
[1760187347371,0.124746,112290.0,112280.0,0.1244539]
[1760187347568,0.124746,112290.0,112280.0,0.3395339]
[1760187347771,0.124746,112290.0,112280.0,0.1244539]
[1760187348272,0.111166,112290.0,112280.0,0.1244539]
[1760187348666,0.326246,112290.0,112280.0,0.1244539]
[1760187348971,0.326246,112290.0,112280.0,0.43825469]
[1760187349164,0.001,112290.0,112280.0,1.19905469]
[1760187350572,0.02306,112300.0,112290.0,0.1244515]
[1760187350773,0.02306,112300.0,112290.0,0.65337229]
[1760187350972,0.04770048,112300.0,112290.0,0.65337229]
[1760187353177,0.04870048,112300.0,112290.0,0.65337229]
[1760187353380,0.04870048,112300.0,112290.0,0.43825229]
[1760187353576,0.04870048,112300.0,112290.0,0.65337229]
[1760187353974,0.04870048,112300.0,112290.0,0.43825229]
[1760187354177,0.04870048,112300.0,112290.0,0.65337229]
[1760187354576,0.02406,112300.0,112290.0,0.65337229]
[1760187355475,0.02406,112300.0,112290.0,0.43825229]
[1760187355677,0.02406,112300.0,112290.0,0.65337229]
[1760187355881,0.02506,112300.0,112290.0,0.65337229]
[1760187356178,0.03823,112300.0,112290.0,0.3263015]
[1760187356478,0.04970874,112300.0,112290.0,0.3395715]
[1760187357276,0.04970874,112300.0,112290.0,0.1244515]
[1760187357478,0.04970874,112300.0,112290.0,0.3395715]
[1760187357679,0.49946684,112300.0,112290.0,0.3395715]
[1760187358585,0.41050874,112300.0,112290.0,0.3395715]
[1760187358786,0.41050874,112300.0,112290.0,0.1244515]
[1760187358980,0.41050874,112300.0,112290.0,0.3395715]
[1760187359181,0.04970874,112300.0,112290.0,0.3395715]
[1760187359680,0.04970874,112300.0,112290.0,0.1244515]
[1760187359983,0.15183684,112300.0,112290.0,0.38302]
[1760187360181,0.125196,112290.0,112280.0,0.23734]
[1760187360382,0.03623,112290.0,112280.0,0.1111939]
[1760187360675,0.125196,112290.0,112280.0,0.3262739]
[1760187360880,0.125196,112290.0,112280.0,0.1244639]
[1760187361077,0.02306,112290.0,112280.0,0.65338469]
[1760187361480,0.1140187,112300.0,112290.0,0.03549]
[1760187361681,0.13867143,112300.0,112290.0,0.34929079]
[1760187361878,0.13867143,112300.0,112290.0,0.56441079]
[1760187362088,0.13767143,112300.0,112290.0,0.34929079]
[1760187362287,0.13667143,112300.0,112290.0,0.56441079]
[1760187362685,0.13767143,112300.0,112290.0,0.03549]
[1760187362885,0.13767143,112300.0,112290.0,0.25057]
[1760187363188,0.1130187,112300.0,112290.0,0.25057]
[1760187363382,0.13867567,112300.0,112290.0,0.25057]
[1760187363584,0.13867567,112300.0,112290.0,0.03549]
[1760187363785,0.13867567,112300.0,112290.0,0.25061]
[1760187364887,0.13867567,112300.0,112290.0,0.56441079]
[1760187365587,0.13867567,112300.0,112290.0,0.25061]
[1760187366483,0.04971697,112300.0,112290.0,0.339576]
[1760187366781,0.02306,112310.0,112300.0,0.1244419]
[1760187366988,0.09343114,112320.0,112310.0,0.1244402]
[1760187367185,0.11809267,112320.0,112310.0,0.65336099]
[1760187367489,0.09343114,112320.0,112310.0,0.43824099]
[1760187367690,0.11808914,112320.0,112310.0,0.65336099]
[1760187368089,0.11808914,112320.0,112310.0,0.43824099]
[1760187368291,0.11808914,112320.0,112310.0,0.65336099]
[1760187369090,0.11808914,112320.0,112310.0,0.65332099]
[1760187369290,0.09443114,112320.0,112310.0,0.43824099]
[1760187369491,0.11908304,112320.0,112310.0,0.65332099]
[1760187369692,0.20802534,112320.0,112310.0,0.65332099]
[1760187369993,0.18337344,112320.0,112310.0,0.65332099]
[1760187370194,0.20802625,112320.0,112310.0,0.43824099]
[1760187370393,0.20902625,112320.0,112310.0,0.65332099]
[1760187371090,0.20902625,112320.0,112310.0,0.43824099]
[1760187371392,0.20902625,112320.0,112310.0,0.65332099]
[1760187372291,0.20902625,112320.0,112310.0,0.43824099]
[1760187372493,0.20902625,112320.0,112310.0,0.65332099]
[1760187372893,0.20902625,112320.0,112310.0,0.43824099]
[1760187373095,0.20902625,112320.0,112310.0,0.65332099]
[1760187373485,0.20902625,112320.0,112310.0,0.43824099]
[1760187373693,0.20902625,112320.0,112310.0,0.65332099]
[1760187375291,0.18437344,112320.0,112310.0,0.43824099]
[1760187375595,0.18437344,112320.0,112310.0,0.65332099]
[1760187376799,0.18437344,112320.0,112310.0,0.43824099]
[1760187376992,0.18437344,112320.0,112310.0,0.65332099]
[1760187377392,0.18437344,112320.0,112310.0,0.43824099]
[1760187377693,0.18437344,112320.0,112310.0,0.65332099]
[1760187379193,0.18437344,112320.0,112310.0,0.43824099]
[1760187379394,0.18437344,112320.0,112310.0,0.65332099]
[1760187380094,0.18437344,112320.0,112310.0,0.43824099]
[1760187380294,0.18437344,112320.0,112310.0,0.65332099]
[1760187380591,0.16131344,112320.0,112310.0,0.65332099]
[1760187380796,0.07237114,112320.0,112310.0,1.01412099]
[1760187380996,0.07237114,112320.0,112310.0,0.79904099]
[1760187381197,0.07237114,112320.0,112310.0,1.01412099]
[1760187382600,0.09504114,112320.0,112310.0,1.01412099]
[1760187382799,0.09504114,112320.0,112310.0,0.79904099]
[1760187383398,0.09504114,112320.0,112310.0,1.01408099]
[1760187383599,0.07237114,112320.0,112310.0,1.41408099]
[1760187386303,0.07237114,112320.0,112310.0,1.1002802]
[1760187386503,0.07237114,112320.0,112310.0,1.41408099]
[1760187388505,0.07237114,112320.0,112310.0,1.19904099]
[1760187388703,0.07237114,112320.0,112310.0,1.41408099]
[1760187396509,0.07237114,112320.0,112310.0,1.1002802]
[1760187396710,0.07237114,112320.0,112310.0,1.41408099]
[1760187399109,0.07237114,112320.0,112310.0,1.1002402]
[1760187399309,0.07237114,112320.0,112310.0,1.41404099]
[1760187402415,0.07237114,112320.0,112310.0,1.01404099]
[1760187406520,0.09516114,112320.0,112310.0,0.79904099]
[1760187406722,0.09516114,112320.0,112310.0,1.01404099]
[1760187406920,0.07237114,112320.0,112310.0,1.01404099]
[1760187407217,0.03737114,112320.0,112310.0,1.41404099]
[1760187407422,0.39719,112360.0,112350.0,0.1104274]
[1760187407724,0.06095659,112360.0,112350.0,0.88942726]
[1760187408016,0.03639,112360.0,112350.0,0.88942726]
[1760187408217,0.39676,112370.0,112360.0,0.1104195]
[1760187408422,1.13859234,112370.0,112360.0,0.40519088]
[1760187408623,0.06052511,112370.0,112360.0,0.40519088]
[1760187409322,0.06052511,112370.0,112360.0,0.76599088]
[1760187410019,0.06252511,112370.0,112360.0,0.76599088]
[1760187410716,0.06452511,112370.0,112360.0,0.40519088]
[1760187410920,0.06452511,112370.0,112360.0,0.76599088]
[1760187411118,0.03996,112370.0,112360.0,0.76599088]
[1760187411317,0.03896,112370.0,112360.0,0.76599088]
[1760187412023,0.03796,112370.0,112360.0,0.76599088]
[1760187412723,0.75764539,112370.0,112360.0,0.98095088]
[1760187413524,0.82871778,112370.0,112360.0,0.98095088]
[1760187415327,0.07307239,112370.0,112360.0,1.26295081]
[1760187416025,0.07307239,112370.0,112360.0,1.66295081]
[1760187416422,0.07207239,112370.0,112360.0,1.66295081]
[1760187416727,0.07307239,112370.0,112360.0,1.66295081]
[1760187418027,0.07207239,112370.0,112360.0,1.66295081]
[1760187418725,0.74364505,112390.0,112380.0,0.1104036]
[1760187418922,0.74364505,112390.0,112380.0,1.25012346]
[1760187419122,0.03639,112390.0,112380.0,1.25012346]
[1760187419826,0.03739,112390.0,112380.0,1.25012346]
[1760187420530,0.03839,112390.0,112380.0,1.25012346]
[1760187421229,0.11019639,112390.0,112380.0,1.25012346]
[1760187422130,0.11019639,112390.0,112380.0,0.6861236]
[1760187422429,0.11019639,112390.0,112380.0,1.25012346]
[1760187424724,0.11019639,112390.0,112380.0,1.03520346]
[1760187424929,0.11019639,112390.0,112380.0,1.25008346]
[1760187429832,0.11019639,112390.0,112380.0,1.03520346]
[1760187430033,0.03639,112370.0,112360.0,0.48399085]
[1760187430332,0.03639,112370.0,112360.0,0.98087078]
[1760187430538,0.03639,112370.0,112360.0,0.76599078]
[1760187430737,0.03639,112370.0,112360.0,0.98087078]
[1760187435633,0.1253015,112370.0,112360.0,0.31627138]
[1760187435834,0.1498041,112370.0,112360.0,0.53115138]
[1760187436035,0.1498041,112370.0,112360.0,0.01277145]
[1760187436036,0.9106041,112370.0,112360.0,0.01277145]
[1760187436236,0.1254473,112350.0,112340.0,0.66463993]
[1760187436438,0.1254473,112350.0,112340.0,0.29498264]
[1760187436631,0.14997103,112350.0,112340.0,0.53170264]
[1760187437037,0.14997103,112350.0,112340.0,0.62063794]
[1760187437337,0.22215155,112350.0,112340.0,0.62063794]
[1760187437537,0.19762782,112350.0,112340.0,0.62063794]
[1760187438339,0.19762782,112350.0,112340.0,0.31682264]
[1760187438538,0.19762782,112350.0,112340.0,0.62063794]
[1760187439035,0.22143049,112350.0,112340.0,0.29498264]
[1760187439232,0.22143049,112350.0,112340.0,0.31682264]
[1760187439428,0.62143049,112350.0,112340.0,0.29498264]
[1760187439831,1.11831042,112350.0,112340.0,0.01298271]
[1760187440030,0.1254553,112340.0,112330.0,0.30383993]
[1760187440240,0.03652,112340.0,112330.0,0.39278313]
[1760187441136,0.03652,112340.0,112330.0,0.60770313]
[1760187441337,0.5254553,112340.0,112330.0,0.51875993]
[1760187441738,0.5254553,112340.0,112330.0,0.60770313]
[1760187441941,0.43652,112340.0,112330.0,0.39278313]
[1760187442238,0.43652,112340.0,112330.0,0.60774313]
[1760187442541,0.43652,112340.0,112330.0,0.62032187]
[1760187443139,0.5254553,112340.0,112330.0,0.53137867]
[1760187443435,0.5254553,112340.0,112330.0,0.03441874]
[1760187443735,0.7404153,112340.0,112330.0,0.01257874]
[1760187443934,0.03652,112330.0,112320.0,0.96862677]
[1760187444639,0.03652,112330.0,112320.0,0.98135616]
[1760187444834,0.03652,112330.0,112320.0,0.53160546]
[1760187445041,0.03652,112330.0,112320.0,0.62155656]
[1760187445240,0.03652,112330.0,112320.0,0.62255656]
[1760187447439,0.39732,112330.0,112320.0,0.62255656]
[1760187449844,1.1032456,112330.0,112320.0,0.62255656]
[1760187450640,1.1032456,112330.0,112320.0,0.40759656]
[1760187450844,1.1032456,112330.0,112320.0,0.62255656]
[1760187451845,0.7424456,112330.0,112320.0,0.62255656]
[1760187452145,1.1032456,112330.0,112320.0,0.34055663]
[1760187452445,0.7424456,112330.0,112320.0,0.62255656]
[1760187452645,1.1032456,112330.0,112320.0,0.62255656]
[1760187453145,1.1032456,112330.0,112320.0,0.62251656]
[1760187455146,1.5921888,112330.0,112320.0,0.01480553]
[1760187455448,2.08910873,112330.0,112320.0,0.01480553]
[1760187455643,1.87418873,112330.0,112320.0,0.01480553]
[1760187456049,2.08914873,112330.0,112320.0,0.01480553]
[1760187456250,1.87418873,112330.0,112320.0,0.01480553]
[1760187456752,1.5921888,112330.0,112320.0,0.01480553]
[1760187457051,1.8071488,112330.0,112320.0,0.03779553]
[1760187457351,1.5921888,112330.0,112320.0,0.03779553]
[1760187457550,1.5921888,112330.0,112320.0,0.31979546]
[1760187457751,1.8071488,112330.0,112320.0,0.31979546]
[1760187458151,1.8071488,112330.0,112320.0,0.29680546]
[1760187458353,1.83090591,112330.0,112320.0,0.31979546]
[1760187458553,1.8071488,112330.0,112320.0,0.31979546]
[1760187458752,1.8071488,112330.0,112320.0,0.01480553]
[1760187459253,1.5921888,112330.0,112320.0,0.01480553]
[1760187459454,1.61595453,112330.0,112320.0,0.01480553]
[1760187459955,1.83091453,112330.0,112320.0,0.01480553]
[1760187461758,1.83091453,112330.0,112320.0,0.03779553]
[1760187462265,1.61595453,112330.0,112320.0,0.03779553]
[1760187462558,1.21595453,112330.0,112320.0,0.03779553]
[1760187462759,1.43091453,112330.0,112320.0,0.03779553]
[1760187462958,1.21595453,112330.0,112320.0,0.01480553]
[1760187463159,1.43091453,112330.0,112320.0,0.03610553]
[1760187463459,1.43091453,112330.0,112320.0,0.01480553]
[1760187463655,1.43091453,112330.0,112320.0,0.29680546]
[1760187463856,1.43091453,112330.0,112320.0,0.31810546]
[1760187464960,1.21595453,112330.0,112320.0,0.31810546]
[1760187465162,1.43091453,112330.0,112320.0,0.31810546]
[1760187466857,1.43091453,112330.0,112320.0,0.29680546]
[1760187467060,1.21595453,112330.0,112320.0,0.29680546]
[1760187467260,1.43091453,112330.0,112320.0,0.29680546]
[1760187468262,1.21595453,112330.0,112320.0,0.29680546]
[1760187468460,1.43091453,112330.0,112320.0,0.29680546]
[1760187468655,1.12701133,112330.0,112320.0,0.40822656]
[1760187468860,1.34197133,112330.0,112320.0,0.40822656]
[1760187469460,1.34197133,112330.0,112320.0,0.43977624]
[1760187469962,1.12701133,112330.0,112320.0,0.43977624]
[1760187470164,1.12701133,112330.0,112320.0,0.83977624]
[1760187470563,1.11192133,112330.0,112320.0,0.85255624]
[1760187471264,0.75112133,112330.0,112320.0,0.85255624]
[1760187472665,1.12514133,112330.0,112320.0,0.12622663]
[1760187472962,1.12514133,112330.0,112320.0,0.34118663]
[1760187473561,1.11192133,112330.0,112320.0,0.66751624]
[1760187474360,1.11192133,112330.0,112320.0,0.66755624]
[1760187474559,1.11192133,112330.0,112320.0,0.45255624]
[1760187474861,1.11192133,112330.0,112320.0,0.66755624]
[1760187475458,1.11192133,112330.0,112320.0,0.45255624]
[1760187475660,1.11192133,112330.0,112320.0,0.66755624]
[1760187475954,1.09049133,112330.0,112320.0,0.66755624]
[1760187476463,1.11192133,112330.0,112320.0,0.66755624]
[1760187476658,1.11192133,112330.0,112320.0,0.45255624]
[1760187476858,1.11192133,112330.0,112320.0,0.66755624]
[1760187477567,1.11192133,112330.0,112320.0,0.45255624]
[1760187477762,1.11192133,112330.0,112320.0,0.66755624]
[1760187478557,1.11192133,112330.0,112320.0,0.66751624]
[1760187479061,1.11192133,112330.0,112320.0,1.06751624]
[1760187479270,0.40599573,112330.0,112320.0,1.06751624]
[1760187479469,0.40599573,112330.0,112320.0,1.06755624]
[1760187479969,0.40599573,112330.0,112320.0,0.85255624]
[1760187480171,0.40599573,112330.0,112320.0,1.06755624]
[1760187480867,0.40599573,112330.0,112320.0,1.06254733]
[1760187481267,0.38223,112330.0,112320.0,1.06254733]
[1760187481565,0.40610418,112330.0,112320.0,1.06250733]
[1760187481765,0.40618032,112330.0,112320.0,1.06250733]
[1760187482364,0.40618032,112330.0,112320.0,0.84754733]
[1760187482565,0.40618032,112330.0,112320.0,1.06250733]
[1760187482968,0.40618032,112330.0,112320.0,0.84754733]
[1760187483166,0.40618032,112330.0,112320.0,1.06250733]
[1760187483366,0.04538032,112330.0,112320.0,1.06250733]
[1760187483663,0.04538437,112330.0,112320.0,1.06250733]
[1760187483868,0.02395437,112330.0,112320.0,1.06250733]
[1760187484070,0.02395437,112330.0,112320.0,1.42330733]
[1760187484372,0.02395437,112330.0,112320.0,1.10975772]
[1760187484567,0.02395437,112330.0,112320.0,1.42330733]
[1760187485470,7.614e-05,112330.0,112320.0,1.42330733]
[1760187490474,7.614e-05,112330.0,112320.0,1.20834733]
[1760187490773,7.614e-05,112330.0,112320.0,1.42330733]
[1760187494275,1.07457464,112360.0,112350.0,0.1017074]
[1760187494476,1.09600464,112360.0,112350.0,0.65268701]
[1760187495371,0.38223,112360.0,112350.0,0.65268701]
[1760187496476,1.09417322,112370.0,112360.0,0.1233395]
[1760187496773,0.41936668,112370.0,112360.0,0.43688911]
[1760187497173,0.50827828,112370.0,112360.0,0.43688911]
[1760187497674,0.39554,112370.0,112360.0,0.43688911]
[1760187498068,0.38232,112370.0,112360.0,0.43688911]
[1760187498278,0.02152,112370.0,112360.0,0.43688911]
[1760187498479,0.42152,112370.0,112360.0,0.43688911]
[1760187498775,0.42352,112370.0,112360.0,0.43688911]
[1760187499272,0.42252,112370.0,112360.0,0.1233395]
[1760187499469,0.42252,112370.0,112360.0,0.43688911]
[1760187499668,0.42152,112370.0,112360.0,0.43688911]
[1760187499870,1.07811606,112380.0,112370.0,0.1233316]
[1760187500077,0.38232,112380.0,112370.0,0.65180121]
[1760187500277,0.3608,112380.0,112370.0,0.65180121]
[1760187500878,1.18704685,112390.0,112380.0,0.1233237]
[1760187501074,1.18704685,112390.0,112380.0,0.43687331]
[1760187501278,1.17382685,112390.0,112380.0,0.43687331]
[1760187501473,0.09332639,112390.0,112380.0,0.43687331]
[1760187501680,0.07180639,112390.0,112380.0,0.43687331]
[1760187501879,0.39554,112400.0,112390.0,0.03442]
[1760187502077,0.41916736,112400.0,112390.0,0.65178541]
[1760187502381,0.38232,112400.0,112390.0,0.65178541]
[1760187502777,0.45514407,112400.0,112390.0,0.65178541]
[1760187503378,0.45614407,112400.0,112390.0,0.43686541]
[1760187503576,0.45714407,112400.0,112390.0,0.65178541]
[1760187503974,0.45714407,112400.0,112390.0,0.43686541]
[1760187504175,0.45714407,112400.0,112390.0,0.65178541]
[1760187505182,1.16277177,112400.0,112390.0,0.65178541]
[1760187505384,0.38432,112400.0,112390.0,0.65178541]
[1760187507386,0.46835924,112400.0,112390.0,0.65178541]
[1760187507690,0.49193987,112400.0,112390.0,0.65178541]
[1760187508884,1.20922897,112400.0,112390.0,0.65178541]
[1760187509887,1.20922897,112400.0,112390.0,0.65174541]
[1760187510689,1.18564834,112400.0,112390.0,0.65174541]
[1760187510892,1.18564834,112400.0,112390.0,0.63850541]
[1760187512587,1.27453614,112400.0,112390.0,0.33472961]
[1760187512788,1.27453614,112400.0,112390.0,0.54960961]
[1760187513892,1.27453614,112400.0,112390.0,0.63850541]
[1760187514487,1.29812367,112400.0,112390.0,0.63850541]
[1760187517493,1.29812367,112400.0,112390.0,0.02118]
[1760187517696,1.29812367,112400.0,112390.0,0.23602]
[1760187518092,1.29812367,112400.0,112390.0,0.02118]
[1760187518295,0.1237437,112380.0,112370.0,0.4708908]
[1760187518490,0.4845437,112380.0,112370.0,0.54956961]
[1760187518896,0.4845437,112380.0,112370.0,0.63848121]
[1760187519098,0.39564,112380.0,112370.0,0.63848121]
[1760187519395,0.38232,112380.0,112370.0,0.65172121]
[1760187519596,0.35568423,112380.0,112370.0,0.65172121]
[1760187520098,0.02152,112380.0,112370.0,0.65172121]
[1760187520500,0.03509,112380.0,112370.0,0.65172121]
[1760187520704,0.03509,112380.0,112370.0,0.63848121]
[1760187521000,0.1239937,112380.0,112370.0,0.54956961]
[1760187521498,0.14762427,112380.0,112370.0,0.54956961]
[1760187521698,0.14762427,112380.0,112370.0,0.02118]
[1760187521895,0.14762427,112380.0,112370.0,0.23602]
[1760187521896,0.50842427,112380.0,112370.0,0.23602]
[1760187522499,0.1242061,112370.0,112360.0,0.02213]
[1760187522697,0.4850061,112370.0,112360.0,0.23697]
[1760187522998,0.50864568,112370.0,112360.0,0.02213]
[1760187523301,0.1242095,112360.0,112350.0,0.78540701]
[1760187523599,0.1242095,112360.0,112350.0,1.00024701]
[1760187523798,0.03529,112360.0,112350.0,0.6999174]
[1760187523996,0.03529,112360.0,112350.0,1.00024701]
[1760187525195,0.10648963,112360.0,112350.0,1.00024701]
[1760187525692,0.10648963,112360.0,112350.0,1.01311701]
[1760187529399,0.10648963,112360.0,112350.0,0.6995674]
[1760187529598,0.10648963,112360.0,112350.0,1.26359396]
[1760187530103,0.08814178,112360.0,112350.0,1.26359396]
[1760187540911,0.10086178,112360.0,112350.0,1.26359396]
[1760187541607,0.08814178,112360.0,112350.0,1.26359396]
[1760187541807,0.07119963,112360.0,112350.0,1.66359396]
[1760187542112,0.1104736,112380.0,112370.0,0.03618]
[1760187542301,0.85736119,112380.0,112370.0,0.53307328]
[1760187542506,0.49491294,112380.0,112370.0,0.53307328]
[1760187543401,0.50720294,112380.0,112370.0,0.52020328]
[1760187543708,0.90721153,112380.0,112370.0,0.28201328]
[1760187544709,1.12209153,112380.0,112370.0,0.30532328]
[1760187544911,0.90721153,112380.0,112370.0,0.30532328]
[1760187545111,0.90721153,112380.0,112370.0,0.28201328]
[1760187545413,1.12209153,112380.0,112370.0,0.28201328]
[1760187545910,0.90721153,112380.0,112370.0,0.28201328]
[1760187546111,1.12209153,112380.0,112370.0,0.28201328]
[1760187546312,0.90721153,112380.0,112370.0,0.28201328]
[1760187546612,1.81724902,112380.0,112370.0,0.28201328]
[1760187547914,1.60236902,112380.0,112370.0,0.28201328]
[1760187548213,1.81724902,112380.0,112370.0,0.28201328]
[1760187548413,1.81724902,112380.0,112370.0,0.30532328]
[1760187549413,1.60236902,112380.0,112370.0,0.30532328]
[1760187549616,1.81724902,112380.0,112370.0,0.30532328]
[1760187550314,1.60236902,112380.0,112370.0,0.30532328]
[1760187550515,1.81724902,112380.0,112370.0,0.30532328]
[1760187551210,1.81724902,112380.0,112370.0,0.02331]